bitfinex/quotes_BTCUSD_20250515
["timestamp","ask_amount","ask_price","bid_price","bid_amount"]
[1747285988418,0.22092835,102610.0,102600.0,0.91169936]
[1747285989632,0.22092835,102610.0,102600.0,1.11637771]
[1747285989837,0.24041933,102610.0,102600.0,0.92144594]
[1747285990036,0.24041933,102610.0,102600.0,0.91169936]
[1747285990240,0.24041933,102610.0,102600.0,0.93119243]
[1747285990438,0.24041933,102610.0,102600.0,1.1358705]
[1747285990661,0.24041933,102610.0,102600.0,1.1456167]
[1747285991301,0.24041933,102610.0,102600.0,1.1358705]
[1747285994938,0.24041933,102610.0,102600.0,1.1456167]
[1747285995176,0.24041933,102610.0,102600.0,1.1261242]
[1747285995380,0.24041933,102610.0,102600.0,1.13587059]
[1747285995582,0.24041933,102610.0,102600.0,1.14561689]
[1747286001511,0.24041933,102610.0,102600.0,1.13587059]
[1747286001759,0.24041933,102610.0,102600.0,0.91169936]
[1747286001965,0.23067398,102610.0,102600.0,0.91169936]
[1747286008629,0.23067398,102610.0,102600.0,0.48605851]
[1747286012495,0.23067398,102610.0,102600.0,0.14605851]
[1747286018473,0.23067398,102610.0,102600.0,0.13617323]
[1747286025481,0.23067398,102610.0,102590.0,0.67130905]
[1747286025482,0.23567835,102600.0,102590.0,0.67130905]
[1747286025906,0.23567835,102600.0,102590.0,0.66156161]
[1747286027286,0.23667835,102600.0,102590.0,0.66556161]
[1747286029547,0.23667835,102600.0,102590.0,0.65581408]
[1747286036346,0.24642465,102600.0,102590.0,0.85076485]
[1747286036497,0.24642465,102600.0,102590.0,0.86051238]
[1747286040384,0.06123889,102600.0,102590.0,0.98706343]
[1747286041303,0.05149231,102600.0,102590.0,0.98706343]
[1747286041505,0.06123889,102600.0,102590.0,0.98706343]
[1747286041916,0.06123889,102600.0,102590.0,0.99681039]
[1747286042131,0.25617066,102600.0,102590.0,0.99681039]
[1747286043580,0.25617066,102600.0,102590.0,1.18081039]
[1747286047376,0.06123889,102600.0,102590.0,1.18080973]
[1747286049132,0.05149231,102600.0,102590.0,1.18080973]
[1747286049348,0.06123889,102600.0,102590.0,1.18080973]
[1747286049563,0.25617066,102600.0,102590.0,0.98706286]
[1747286049781,0.25617066,102600.0,102590.0,1.35498286]
[1747286053580,0.25617066,102600.0,102590.0,1.3452359]
[1747286054922,0.24642465,102600.0,102590.0,1.33548884]
[1747286056108,0.23667835,102600.0,102590.0,1.32574178]
[1747286056318,0.23667835,102600.0,102590.0,1.33548922]
[1747286056528,0.23667835,102600.0,102590.0,1.34528433]
[1747286056946,0.22693177,102600.0,102590.0,0.76291859]
[1747286057774,0.22693177,102600.0,102590.0,0.95786936]
[1747286057988,0.22693177,102600.0,102590.0,0.96761689]
[1747286058409,0.22693177,102600.0,102590.0,0.77266612]
[1747286058751,0.22693177,102600.0,102590.0,0.76291859]
[1747286060546,0.22693177,102600.0,102590.0,0.77266612]
[1747286060752,0.22693177,102600.0,102590.0,0.96761689]
[1747286060958,0.22693177,102600.0,102590.0,0.97736433]
[1747286061167,0.22693177,102600.0,102590.0,0.77266612]
[1747286062477,0.22693177,102600.0,102590.0,0.66560919]
[1747286063590,0.22693177,102600.0,102590.0,0.67535672]
[1747286063794,0.22693177,102600.0,102590.0,0.66560919]
[1747286070820,0.22693177,102600.0,102590.0,0.67535672]
[1747286076226,0.23667835,102600.0,102590.0,0.88005493]
[1747286083439,0.23667835,102600.0,102590.0,0.54005493]
[1747286084631,0.23667835,102600.0,102590.0,0.72393493]
[1747286087435,0.23667835,102600.0,102590.0,0.51923672]
[1747286088491,0.23667835,102600.0,102590.0,0.71418749]
[1747286088744,0.23667835,102600.0,102590.0,0.72393493]
[1747286095453,0.23667835,102600.0,102590.0,0.84948919]
[1747286096712,0.23667835,102600.0,102590.0,0.66560919]
[1747286097973,0.23667835,102600.0,102590.0,0.67535672]
[1747286100016,0.23667835,102600.0,102590.0,0.88005493]
[1747286100392,0.23667835,102600.0,102590.0,0.88980227]
[1747286100907,0.23667835,102600.0,102590.0,0.89954952]
[1747286103284,0.23667835,102600.0,102590.0,0.88980227]
[1747286103926,0.23667835,102600.0,102590.0,0.8703074]
[1747286104150,0.23667835,102600.0,102590.0,0.88005474]
[1747286104329,0.23667835,102600.0,102590.0,0.8703074]
[1747286106507,0.23667835,102600.0,102590.0,0.88005474]
[1747286108142,0.23667835,102600.0,102590.0,0.87025963]
[1747286109667,0.23667835,102600.0,102590.0,0.88000688]
[1747286109901,0.0417463,102600.0,102590.0,0.8995009]
[1747286110105,0.25617057,102600.0,102590.0,0.88975403]
[1747286110430,0.0612388,102600.0,102590.0,0.89950099]
[1747286111058,0.07098538,102600.0,102590.0,0.89950099]
[1747286111671,0.26591715,102600.0,102590.0,0.89950099]
[1747286115507,0.02594582,102600.0,102590.0,0.99680982]
[1747286115943,0.001,102600.0,102590.0,1.00460982]
[1747286118673,0.001,102600.0,102590.0,0.99680982]
[1747286118894,0.0168,102600.0,102590.0,0.99680982]
[1747286119115,0.0332,102600.0,102590.0,0.99680982]
[1747286119326,0.05269193,102600.0,102590.0,0.99680982]
[1747286119747,0.05269193,102600.0,102590.0,1.36436982]
[1747286119976,0.05269193,102600.0,102590.0,0.99680982]
[1747286120118,0.05269193,102600.0,102590.0,1.36436982]
[1747286120538,0.06243823,102600.0,102590.0,1.36436982]
[1747286120738,0.05269193,102600.0,102590.0,1.36436982]
[1747286121096,0.05269193,102600.0,102590.0,0.99680982]
[1747286121241,0.06243823,102600.0,102590.0,0.99680982]
[1747286121440,0.05269193,102600.0,102590.0,1.36436982]
[1747286121666,0.06243813,102600.0,102590.0,0.99680982]
[1747286121868,0.06243813,102600.0,102590.0,1.36436982]
[1747286122077,0.07218452,102600.0,102590.0,1.36436982]
[1747286122307,0.06243813,102600.0,102590.0,1.36436982]
[1747286123111,0.07218452,102600.0,102590.0,1.36436982]
[1747286123316,0.06243813,102600.0,102590.0,1.36436982]
[1747286123661,0.07218452,102600.0,102590.0,1.36436982]
[1747286124549,0.07218452,102600.0,102590.0,1.08330042]
[1747286124737,0.07218452,102600.0,102590.0,1.26706042]
[1747286125793,0.25737094,102600.0,102590.0,1.05405944]
[1747286126008,0.25737094,102600.0,102590.0,1.0638064]
[1747286128251,0.25737094,102600.0,102590.0,1.05405944]
[1747286128388,0.25737094,102600.0,102590.0,1.06380659]
[1747286128635,0.25737094,102600.0,102590.0,1.07355365]
[1747286129241,0.06243917,102600.0,102590.0,1.08330052]
[1747286129725,0.06243917,102600.0,102590.0,1.07355365]
[1747286130331,0.06243917,102600.0,102590.0,1.08330052]
[1747286131215,0.05269259,102600.0,102590.0,1.08330052]
[1747286131784,0.05269212,102600.0,102590.0,0.89950052]
[1747286131934,0.06243833,102600.0,102590.0,1.08330052]
[1747286132136,0.07218472,102600.0,102590.0,1.08330052]
[1747286132981,0.06243833,102600.0,102590.0,1.08330052]
[1747286133332,0.06243842,102600.0,102590.0,1.08330052]
[1747286135011,0.072185,102600.0,102590.0,1.08330052]
[1747286135432,0.25737085,102600.0,102590.0,0.87025944]
[1747286135636,0.25737085,102600.0,102590.0,1.06380659]
[1747286136042,0.25737085,102600.0,102590.0,0.88975365]
[1747286136274,0.25737085,102600.0,102590.0,1.07355365]
[1747286136475,0.25737085,102600.0,102590.0,1.08330061]
[1747286139612,0.25737085,102600.0,102590.0,1.07355365]
[1747286139882,0.25737085,102600.0,102590.0,1.08330061]
[1747286140083,0.25737085,102600.0,102590.0,1.07355365]
[1747286140724,0.25737085,102600.0,102590.0,1.06380659]
[1747286141060,0.25737085,102600.0,102590.0,1.07355365]
[1747286142559,0.25737085,102600.0,102590.0,1.03456485]
[1747286142770,0.23787835,102600.0,102590.0,1.04431238]
[1747286142934,0.23787835,102600.0,102590.0,1.05405982]
[1747286143907,0.23787835,102600.0,102590.0,0.84936161]
[1747286144111,0.23787835,102600.0,102590.0,0.85910905]
[1747286144319,0.22813177,102600.0,102590.0,0.85910905]
[1747286144977,0.22813177,102600.0,102590.0,0.84936161]
[1747286146296,0.23787826,102600.0,102590.0,1.06380707]
[1747286146505,0.24762484,102600.0,102590.0,1.06380707]
[1747286146703,0.25737104,102600.0,102590.0,1.06380707]
[1747286147121,0.06243851,102600.0,102590.0,0.89950109]
[1747286147329,0.07218509,102600.0,102590.0,1.08322109]
[1747286147759,0.26711686,102600.0,102590.0,1.07347422]
[1747286150664,0.25737094,102600.0,102590.0,1.07347422]
[1747286152659,0.25737094,102600.0,102590.0,1.06372707]
[1747286152660,0.24762474,102600.0,102590.0,1.06372707]
[1747286153252,0.23787835,102600.0,102590.0,1.05397982]
[1747286155835,0.23787835,102600.0,102590.0,1.06372716]
[1747286156206,0.23787835,102600.0,102590.0,1.07347441]
[1747286157501,0.24762465,102600.0,102590.0,1.08322147]
[1747286157728,0.24762465,102600.0,102590.0,1.07347441]
[1747286159610,0.0624388,102600.0,102590.0,1.0832209]
[1747286159816,0.0624388,102600.0,102590.0,1.08322033]
[1747286160016,0.0624388,102600.0,102590.0,0.89950033]
[1747286160279,0.06243794,102600.0,102590.0,0.89950033]
[1747286160434,0.05269174,102600.0,102590.0,1.08322033]
[1747286160640,0.06243785,102600.0,102590.0,1.08322033]
[1747286160887,0.07218424,102600.0,102590.0,1.08322033]
[1747286162091,0.07218415,102600.0,102590.0,1.08322033]
[1747286162604,0.07218415,102600.0,102590.0,1.09315187]
[1747286162807,0.08193054,102600.0,102590.0,1.09315187]
[1747286167972,0.0819313,102600.0,102590.0,1.083405]
[1747286168177,0.08193187,102600.0,102590.0,1.083405]
[1747286168830,0.08193187,102600.0,102590.0,1.06886415]
[1747286173610,0.08193187,102600.0,102590.0,1.07861102]
[1747286175327,0.07218576,102600.0,102590.0,1.06886415]
[1747286175742,0.26711753,102600.0,102590.0,0.86565013]
[1747286175987,0.25737123,102600.0,102590.0,1.05939728]
[1747286176194,0.24762484,102600.0,102590.0,1.04965013]
[1747286176402,0.24762484,102600.0,102590.0,1.03990288]
[1747286176606,0.24482484,102600.0,102590.0,1.03990288]
[1747286177442,0.24482484,102600.0,102590.0,1.03015554]
[1747286177654,0.23507835,102600.0,102590.0,0.83520477]
[1747286178014,0.23507835,102600.0,102590.0,0.8449523]
[1747286178226,0.23507835,102600.0,102590.0,0.35393154]
[1747286180177,0.23507835,102600.0,102590.0,0.6899743]
[1747286180178,0.0596388,102600.0,102590.0,0.6899743]
[1747286180432,0.25457057,102600.0,102590.0,0.67048009]
[1747286180657,0.0596388,102600.0,102590.0,0.69972155]
[1747286181089,0.06938538,102600.0,102590.0,0.69972155]
[1747286181305,0.04989231,102600.0,102590.0,0.69972155]
[1747286181521,0.06938519,102600.0,102590.0,0.69972155]
[1747286182351,0.06938519,102600.0,102590.0,0.99699478]
[1747286182562,0.06938519,102600.0,102590.0,0.98724791]
[1747286182563,0.07913177,102600.0,102590.0,0.98724791]
[1747286182788,0.06938576,102600.0,102590.0,0.99699497]
[1747286183183,0.05963918,102600.0,102590.0,1.00674193]
[1747286183383,0.04014601,102600.0,102590.0,1.00674127]
[1747286183690,0.05963851,102600.0,102590.0,1.00674127]
[1747286183866,0.0304,102600.0,102590.0,1.19198127]
[1747286184081,0.06143585,102610.0,102600.0,0.5739081]
[1747286184284,0.06143585,102610.0,102600.0,0.7579081]
[1747286184505,0.08092626,102610.0,102600.0,0.7579081]
[1747286184917,0.26609416,102610.0,102600.0,0.74816218]
[1747286185124,0.256349,102610.0,102600.0,0.74816237]
[1747286185598,0.256349,102610.0,102600.0,0.75016237]
[1747286185788,0.24660375,102610.0,102600.0,0.75016237]
[1747286186115,0.24760375,102610.0,102600.0,0.75116237]
[1747286188369,0.24760375,102610.0,102600.0,1.0386894]
[1747286188926,0.24760375,102610.0,102600.0,1.0484356]
[1747286190771,0.23785831,102610.0,102600.0,1.0386894]
[1747286191445,0.22811277,102610.0,102600.0,1.03868949]
[1747286194435,0.22811277,102610.0,102600.0,0.82427323]
[1747286195165,0.22811277,102610.0,102600.0,0.64027323]
[1747286207102,0.22811277,102610.0,102600.0,0.82539323]
[1747286207712,0.22811277,102610.0,102600.0,1.03981788]
[1747286207919,0.22811277,102610.0,102600.0,1.03981807]
[1747286208143,0.07218063,102610.0,102600.0,1.17116063]
[1747286208350,0.07218063,102610.0,102600.0,1.17116073]
[1747286208792,0.07218063,102610.0,102600.0,1.18090683]
[1747286210810,0.07218063,102610.0,102600.0,1.18090617]
[1747286211015,0.08192626,102610.0,102600.0,1.18090617]
[1747286211227,0.07218053,102610.0,102600.0,1.18090617]
[1747286212234,0.08192607,102610.0,102600.0,1.18090617]
[1747286213947,0.07218053,102610.0,102600.0,1.18090617]
[1747286214149,0.08192607,102610.0,102600.0,1.18090617]
[1747286214580,0.08192683,102610.0,102600.0,1.17116035]
[1747286215554,0.26709463,102610.0,102600.0,1.17116035]
[1747286215761,0.26709463,102610.0,102600.0,1.18090627]
[1747286215762,0.03698984,102610.0,102600.0,1.18090627]
[1747286216514,0.03698975,102610.0,102600.0,1.18090627]
[1747286216720,0.02724478,102610.0,102600.0,1.18090627]
[1747286216972,0.03698975,102610.0,102600.0,1.18090627]
[1747286217165,0.02724478,102610.0,102600.0,1.18090627]
[1747286217527,0.03698975,102610.0,102600.0,1.18090627]
[1747286217971,0.001,102610.0,102600.0,1.18090627]
[1747286218135,0.001,102610.0,102600.0,1.18870627]
[1747286218941,0.001,102610.0,102600.0,1.18090627]
[1747286219964,0.01074478,102610.0,102600.0,1.18090627]
[1747286220175,0.001,102610.0,102600.0,1.18090627]
[1747286220561,0.0176,102610.0,102600.0,1.18090627]
[1747286220764,0.001,102610.0,102600.0,1.18090627]
[1747286224721,0.001,102610.0,102600.0,1.18870627]
[1747286225690,0.001,102610.0,102600.0,1.19050627]
[1747286226097,0.001,102610.0,102600.0,1.18870627]
[1747286226703,0.001,102610.0,102600.0,1.87650627]
[1747286227523,0.001,102610.0,102600.0,1.88650627]
[1747286229828,0.001,102610.0,102600.0,2.30730627]
[1747286233120,0.001,102610.0,102600.0,2.30550627]
[1747286233319,0.031,102620.0,102610.0,0.86042176]
[1747286233517,0.031,102620.0,102610.0,1.14453116]
[1747286235345,0.032,102620.0,102610.0,1.14753116]
[1747286238864,0.04174383,102620.0,102610.0,1.14753116]
[1747286239001,0.06123196,102620.0,102610.0,1.14705116]
[1747286239454,0.06123196,102620.0,102610.0,0.96073116]
[1747286239659,0.07097636,102620.0,102610.0,1.33381116]
[1747286240046,0.06123196,102620.0,102610.0,1.33381116]
[1747286240450,0.05148775,102620.0,102610.0,1.33381116]
[1747286240642,0.06123186,102620.0,102610.0,1.33381116]
[1747286240904,0.06123186,102620.0,102610.0,0.96073116]
[1747286241183,0.032,102620.0,102610.0,1.33373116]
[1747286242990,0.29169183,102640.0,102630.0,0.35948718]
[1747286243161,0.29169183,102640.0,102630.0,0.63627323]
[1747286243361,0.29169183,102640.0,102630.0,0.82307323]
[1747286243815,0.29169183,102640.0,102630.0,0.83281696]
[1747286244859,0.20459859,102640.0,102630.0,0.82307323]
[1747286245305,0.20959859,102640.0,102630.0,0.83269721]
[1747286246057,0.24189859,102640.0,102630.0,0.83269721]
[1747286253599,0.24189859,102640.0,102630.0,0.64589721]
[1747286263510,0.24189859,102640.0,102630.0,0.30589721]
[1747286263730,0.33920799,102640.0,102630.0,0.3166252]
[1747286265308,0.33920799,102640.0,102630.0,0.30589721]
[1747286266537,0.33920799,102640.0,102630.0,0.00962398]
[1747286266743,0.24638248,102620.0,102610.0,0.82183323]
[1747286266955,0.24638248,102620.0,102610.0,0.83176951]
[1747286267911,0.24738248,102620.0,102610.0,0.83476951]
[1747286269592,0.24738248,102620.0,102610.0,0.64920951]
[1747286276962,0.23763827,102620.0,102610.0,0.64920951]
[1747286280679,0.23763827,102620.0,102610.0,0.01293628]
[1747286285491,0.23763827,102620.0,102610.0,0.20784905]
[1747286285702,0.20563827,102620.0,102610.0,0.22733984]
[1747286285913,0.03023338,102620.0,102610.0,0.577085]
[1747286286524,0.22512716,102620.0,102610.0,0.577085]
[1747286288112,0.22512716,102620.0,102610.0,0.56714872]
[1747286289451,0.01074392,102620.0,102610.0,0.68874403]
[1747286289678,0.01074383,102620.0,102610.0,0.729889]
[1747286289897,0.03023186,102620.0,102610.0,0.729889]
[1747286290097,0.02048775,102620.0,102610.0,0.729889]
[1747286290329,0.03997607,102620.0,102610.0,1.02616223]
[1747286293238,0.04972047,102620.0,102610.0,1.02616223]
[1747286294639,0.04972113,102620.0,102610.0,1.02616223]
[1747286295348,0.03997664,102620.0,102610.0,1.02616223]
[1747286295561,0.03023215,102620.0,102610.0,1.02616223]
[1747286296194,0.03997645,102620.0,102610.0,1.02616223]
[1747286296846,0.001,102620.0,102610.0,1.02616223]
[1747286297498,0.01074402,102620.0,102610.0,1.02616223]
[1747286299914,0.02048823,102620.0,102610.0,1.01016223]
[1747286300122,0.03023263,102620.0,102610.0,1.01016223]
[1747286300513,0.03023263,102620.0,102610.0,0.99476223]
[1747286301963,0.03997712,102620.0,102610.0,0.99476223]
[1747286302160,0.04972171,102620.0,102610.0,0.99476223]
[1747286302371,0.06582171,102620.0,102610.0,0.99476223]
[1747286302573,0.06582237,102620.0,102610.0,1.35589726]
[1747286303113,0.06582237,102620.0,102610.0,1.36564223]
[1747286303349,0.25097194,102620.0,102610.0,1.1605522]
[1747286303555,0.03997816,102620.0,102610.0,1.3461122]
[1747286303760,0.02048889,102620.0,102610.0,1.37175717]
[1747286303965,0.03023348,102620.0,102610.0,1.37175717]
[1747286304162,0.03023281,102620.0,102610.0,1.37175717]
[1747286304577,0.03023215,102620.0,102610.0,1.37175717]
[1747286304706,0.03997655,102620.0,102610.0,1.35585717]
[1747286308630,0.08142104,102620.0,102610.0,1.35585717]
[1747286310919,0.06522104,102620.0,102610.0,1.35585717]
[1747286313150,0.08132104,102620.0,102610.0,1.35585717]
[1747286314166,0.0813218,102620.0,102610.0,1.35585717]
[1747286315057,0.0813218,102620.0,102610.0,1.35561717]
[1747286315285,0.0813218,102620.0,102610.0,0.98501717]
[1747286315524,0.08132237,102620.0,102610.0,1.35557717]
[1747286316558,0.27621615,102620.0,102610.0,1.12168348]
[1747286316728,0.25672754,102620.0,102610.0,1.32622179]
[1747286317007,0.24698305,102620.0,102610.0,0.93668348]
[1747286317173,0.23723846,102620.0,102610.0,1.12160348]
[1747286317325,0.23723846,102620.0,102610.0,1.12176348]
[1747286319677,0.23723846,102620.0,102610.0,1.13150911]
[1747286320303,0.23723846,102620.0,102610.0,0.83937408]
[1747286320505,0.23723846,102620.0,102610.0,1.02437408]
[1747286320752,0.23723846,102620.0,102610.0,0.65381408]
[1747286320934,0.23723846,102620.0,102610.0,1.02433408]
[1747286321726,0.23723846,102620.0,102610.0,0.63927323]
[1747286322120,0.23723846,102620.0,102610.0,0.82483323]
[1747286326458,0.23723846,102620.0,102610.0,0.52856]
[1747286331307,0.23723846,102620.0,102610.0,0.18856]
[1747286333267,0.23723846,102620.0,102610.0,0.003]
[1747286338667,0.23723846,102620.0,102610.0,0.003]
[1747286349993,0.33454786,102620.0,102610.0,0.003]
[1747286387328,0.40592615,102620.0,102610.0,0.003]
[1747286387526,0.33454786,102620.0,102610.0,0.003]
[1747286406459,0.33423393,102620.0,102610.0,0.003]
[1747286410070,0.23615821,102610.0,102600.0,0.00014489]
[1747286410275,0.86766761,102610.0,102600.0,0.00014489]
[1747286410635,1.6755786,102610.0,102600.0,0.00014489]
[1747286410852,1.78783903,102610.0,102600.0,0.00014489]
[1747286411030,1.41935903,102610.0,102600.0,0.00014489]
[1747286411245,1.77863903,102610.0,102600.0,0.00014489]
[1747286411458,1.87063903,102610.0,102600.0,0.00014489]
[1747286411676,1.87067903,102610.0,102600.0,0.00014489]
[1747286412103,1.68555903,102610.0,102600.0,0.00014489]
[1747286412312,1.87063903,102610.0,102600.0,0.00014489]
[1747286412953,1.87063903,102610.0,102600.0,0.00214489]
[1747286413186,1.86863903,102610.0,102600.0,0.00214489]
[1747286413413,1.86863903,102610.0,102600.0,0.00014489]
[1747286413626,1.87463903,102610.0,102600.0,0.00114489]
[1747286413834,1.87863903,102610.0,102600.0,0.00214489]
[1747286417347,1.77613903,102610.0,102600.0,0.00214489]
[1747286417547,1.77801903,102610.0,102600.0,0.00214489]
[1747286418364,1.75080889,102610.0,102600.0,0.00214489]
[1747286420809,1.21933864,102610.0,102600.0,0.00214489]
[1747286421239,1.59049864,102610.0,102600.0,0.00214489]
[1747286425183,1.59037864,102610.0,102600.0,0.00214489]
[1747286426972,1.59057864,102610.0,102600.0,0.00214489]
[1747286431492,0.77346761,102610.0,102600.0,0.00214489]
[1747286431697,0.77296761,102610.0,102600.0,0.00214489]
[1747286431938,0.40196761,102610.0,102600.0,0.00214489]
[1747286436300,0.41696761,102610.0,102600.0,0.00214489]
[1747286438580,0.40196761,102610.0,102600.0,0.00214489]
[1747286439681,0.40196761,102610.0,102600.0,0.01844489]
[1747286440104,0.40196761,102610.0,102600.0,0.03364489]
[1747286443175,0.40196761,102610.0,102600.0,0.01844489]
[1747286443749,0.40196761,102610.0,102600.0,0.00214489]
[1747286447169,0.41726761,102610.0,102600.0,0.00214489]
[1747286447417,0.43366761,102610.0,102600.0,0.00214489]
[1747286447863,0.53097701,102610.0,102600.0,0.00214489]
[1747286453773,0.54551786,102610.0,102600.0,0.00214489]
[1747286454635,0.91607786,102610.0,102600.0,0.00214489]
[1747286461431,0.71633701,102610.0,102600.0,0.00214489]
[1747286461593,0.80394761,102610.0,102600.0,0.00214489]
[1747286462217,0.46087997,102610.0,102600.0,0.00214489]
[1747286462420,0.80406761,102610.0,102600.0,0.00214489]
[1747286462758,0.83127998,102610.0,102600.0,0.00214489]
[1747286464279,0.90022613,102610.0,102600.0,0.00214489]
[1747286465222,0.83127998,102610.0,102600.0,0.00214489]
[1747286468764,0.83167998,102610.0,102600.0,0.00214489]
[1747286470006,0.80446761,102610.0,102600.0,0.00214489]
[1747286470238,0.43366761,102610.0,102600.0,0.00214489]
[1747286470450,0.61906761,102610.0,102600.0,0.00214489]
[1747286471255,0.71637701,102610.0,102600.0,0.00214489]
[1747286472073,0.61906761,102610.0,102600.0,0.00214489]
[1747286478629,0.80422761,102610.0,102600.0,0.00214489]
[1747286486516,0.80362761,102610.0,102600.0,0.00214489]
[1747286489319,0.80374761,102610.0,102600.0,0.00214489]
[1747286493919,0.83095782,102610.0,102600.0,0.00214489]
[1747286494121,0.92826722,102610.0,102600.0,0.00214489]
[1747286506612,0.98672722,102610.0,102600.0,0.00214489]
[1747286506827,0.92826722,102610.0,102600.0,0.00214489]
[1747286509687,1.26826722,102610.0,102600.0,0.00214489]
[1747286513486,0.89818722,102610.0,102600.0,0.00214489]
[1747286513695,1.26826722,102610.0,102600.0,0.00214489]
[1747286519542,1.26818722,102610.0,102600.0,0.00214489]
[1747286523902,1.26822722,102610.0,102600.0,0.00214489]
[1747286527396,1.37082722,102610.0,102600.0,0.00214489]
[1747286527620,1.26822722,102610.0,102600.0,0.00214489]
[1747286528789,1.28276807,102610.0,102600.0,0.00214489]
[1747286529091,1.40536807,102610.0,102600.0,0.00214489]
[1747286530299,2.12372807,102610.0,102600.0,0.00214489]
[1747286530934,2.11772807,102610.0,102600.0,0.00114489]
[1747286531356,2.11972807,102610.0,102600.0,0.00114489]
[1747286531775,2.12472807,102610.0,102600.0,0.00214489]
[1747286532844,2.12476807,102610.0,102600.0,0.00214489]
[1747286533287,1.75468807,102610.0,102600.0,0.00214489]
[1747286533520,2.12496807,102610.0,102600.0,0.00214489]
[1747286536345,2.13496807,102610.0,102600.0,0.00214489]
[1747286544076,1.76468807,102610.0,102600.0,0.00214489]
[1747286544294,2.13460807,102610.0,102600.0,0.00214489]
[1747286549116,2.14984807,102610.0,102600.0,0.00214489]
[1747286551658,2.09138807,102610.0,102600.0,0.00214489]
[1747286551864,0.67158602,102590.0,102580.0,0.000825]
[1747286552068,0.938399,102590.0,102580.0,0.00130739]
[1747286552486,0.835799,102590.0,102580.0,0.00130739]
[1747286552690,0.50447457,102590.0,102580.0,0.03180739]
[1747286553269,0.31175457,102590.0,102580.0,0.03180739]
[1747286553445,0.70071457,102590.0,102580.0,0.03180739]
[1747286553648,0.79528079,102590.0,102580.0,0.03280739]
[1747286553849,0.78728079,102590.0,102580.0,0.03180739]
[1747286554257,0.79220079,102590.0,102580.0,0.01750739]
[1747286557035,1.18774164,102590.0,102580.0,0.00230739]
[1747286557239,1.21492371,102590.0,102580.0,0.00230739]
[1747286557677,1.20492371,102590.0,102580.0,0.00230739]
[1747286557886,1.21492371,102590.0,102580.0,0.00230739]
[1747286559443,1.22492371,102590.0,102580.0,0.00230739]
[1747286560704,1.21492371,102590.0,102580.0,0.00230739]
[1747286560901,1.22492371,102590.0,102580.0,0.00230739]
[1747286562602,0.84004371,102590.0,102580.0,0.00230739]
[1747286562951,0.82004371,102590.0,102580.0,0.00230739]
[1747286563164,1.26344371,102590.0,102580.0,0.00230739]
[1747286563368,1.29624371,102590.0,102580.0,0.00230739]
[1747286563517,1.30624371,102590.0,102580.0,0.00230739]
[1747286564934,1.27984371,102590.0,102580.0,0.00230739]
[1747286565401,0.24661806,102580.0,102570.0,0.04962121]
[1747286565534,0.46841893,102580.0,102570.0,0.04962121]
[1747286566449,0.45841893,102580.0,102570.0,0.04962121]
[1747286566940,0.45925978,102580.0,102570.0,0.04962121]
[1747286567142,0.82769978,102580.0,102570.0,0.04962121]
[1747286567357,0.84405978,102580.0,102570.0,0.04962121]
[1747286568106,0.86025978,102580.0,102570.0,0.04962121]
[1747286568376,0.47565978,102580.0,102570.0,0.04962121]
[1747286568535,0.86457978,102580.0,102570.0,0.04962121]
[1747286570241,1.28573978,102580.0,102570.0,0.04962121]
[1747286572325,1.38833978,102580.0,102570.0,0.04962121]
[1747286580283,1.01341978,102580.0,102570.0,0.04962121]
[1747286580483,1.39597978,102580.0,102570.0,0.04962121]
[1747286580620,1.01341978,102580.0,102570.0,0.04962121]
[1747286580832,1.39605978,102580.0,102570.0,0.04962121]
[1747286581530,1.37977978,102580.0,102570.0,0.04962121]
[1747286581743,1.43823978,102580.0,102570.0,0.04962121]
[1747286582356,1.45433978,102580.0,102570.0,0.04962121]
[1747286583252,1.44433978,102580.0,102570.0,0.04962121]
[1747286583502,1.45408807,102580.0,102570.0,0.04962121]
[1747286584283,1.11774807,102580.0,102570.0,0.04962121]
[1747286584621,1.32508807,102580.0,102570.0,0.04962121]
[1747286584770,1.32504807,102580.0,102570.0,0.04962121]
[1747286585199,0.94272807,102580.0,102570.0,0.04962121]
[1747286585470,1.32500807,102580.0,102570.0,0.04962121]
[1747286588431,1.34100807,102580.0,102570.0,0.04962121]
[1747286589391,1.32500807,102580.0,102570.0,0.04962121]
[1747286589603,1.34040807,102580.0,102570.0,0.04962121]
[1747286591549,0.95812807,102580.0,102570.0,0.04962121]
[1747286591760,1.33878726,102580.0,102570.0,0.04962121]
[1747286599432,1.33878726,102580.0,102570.0,0.04976402]
[1747286603368,1.33810726,102580.0,102570.0,0.04976402]
[1747286604575,0.94649701,102580.0,102570.0,0.06546402]
[1747286604793,1.13601701,102580.0,102570.0,0.04976402]
[1747286606618,1.15201701,102580.0,102570.0,0.04976402]
[1747286607406,1.16731701,102580.0,102570.0,0.04976402]
[1747286609218,0.74615701,102580.0,102570.0,0.04976402]
[1747286609415,0.84346641,102580.0,102570.0,0.04976402]
[1747286609831,0.74615701,102580.0,102570.0,0.04976402]
[1747286610036,0.71485701,102580.0,102570.0,0.04976402]
[1747286610445,0.71261701,102580.0,102570.0,0.04976402]
[1747286611722,0.72901701,102580.0,102570.0,0.04976402]
[1747286613948,0.74431701,102580.0,102570.0,0.04976402]
[1747286614176,0.84162641,102580.0,102570.0,0.04976402]
[1747286616535,0.75885786,102580.0,102570.0,0.04976402]
[1747286616780,0.81731786,102580.0,102570.0,0.04976402]
[1747286617934,0.80201786,102580.0,102570.0,0.04976402]
[1747286618986,0.81731786,102580.0,102570.0,0.04976402]
[1747286635845,1.15731786,102580.0,102570.0,0.04976402]
[1747286636067,1.25462726,102580.0,102570.0,0.04976402]
[1747286636701,1.09885786,102580.0,102570.0,0.04976402]
[1747286642665,1.20145786,102580.0,102570.0,0.04976402]
[1747286642868,0.33401701,102580.0,102570.0,0.08226402]
[1747286643072,0.68207494,102580.0,102570.0,0.08226402]
[1747286643282,0.30683494,102580.0,102570.0,0.08226402]
[1747286643481,0.49455494,102580.0,102570.0,0.08226402]
[1747286644147,0.49255494,102580.0,102570.0,0.08226402]
[1747286644318,0.49267494,102580.0,102570.0,0.08226402]
[1747286644535,0.48967494,102580.0,102570.0,0.08226402]
[1747286645087,0.49167494,102580.0,102570.0,0.08226402]
[1747286646252,0.49167494,102580.0,102570.0,0.06626402]
[1747286647079,0.49175494,102580.0,102570.0,0.06626402]
[1747286649107,0.49175494,102580.0,102570.0,0.04976402]
[1747286651080,0.52265494,102580.0,102570.0,0.04976402]
[1747286651539,0.62776058,102580.0,102570.0,0.04976402]
[1747286651760,0.53719579,102580.0,102570.0,0.04976402]
[1747286653404,0.72451579,102580.0,102570.0,0.04976402]
[1747286657660,0.81451579,102580.0,102570.0,0.04976402]
[1747286661705,0.87303579,102580.0,102570.0,0.04976402]
[1747286662480,0.87247579,102580.0,102570.0,0.04976402]
[1747286670395,0.48325494,102580.0,102570.0,0.04976402]
[1747286670602,0.39383494,102580.0,102570.0,0.04976402]
[1747286670820,0.58067494,102580.0,102570.0,0.06556402]
[1747286671038,0.58067494,102580.0,102570.0,0.04976402]
[1747286671663,0.59697494,102580.0,102570.0,0.04976402]
[1747286671880,0.58067494,102580.0,102570.0,0.04976402]
[1747286675613,0.59637494,102580.0,102570.0,0.04976402]